fUST/lending_fUST_20250812
["ID","MTS","AMOUNT","RATE_DAILY","PERIOD"]
[378711804,1754983838490,-245.96337984,0.00018662,2]
[378711805,1754983838500,-231.09662016,0.00018662,2]
[378711806,1754983838512,-266.74337984,0.00018662,2]
[378711807,1754983838522,-193.25662016,0.00018662,2]
[378711808,1754983838539,-266.74337984,0.00018662,2]
[378711809,1754983838548,-460.0,0.00018662,2]
[378711810,1754983838557,-888.15,0.00018662,2]
[378711811,1754983838566,-687.44,0.00018662,2]
[378711812,1754983838576,-460.0,0.00018662,2]
[378711813,1754983838585,-460.0,0.00018662,2]
[378711814,1754983838594,-460.0,0.00018662,2]
[378711815,1754983838603,-460.0,0.00018662,2]
[378711816,1754983838612,-288.39674452,0.00018662,2]
[378711817,1754983838621,-463.58,0.00018662,2]
[378711818,1754983838630,-460.0,0.00018662,2]
[378711819,1754983838640,-756.77,0.00018662,2]
[378711820,1754983838650,-933.58,0.00018662,2]
[378711821,1754983838659,-600.08,0.00018662,2]
[378711822,1754983838669,-460.0,0.00018662,2]
[378711823,1754983838678,-460.0,0.00018662,2]
[378711824,1754983838687,-460.0,0.00018662,2]
[378711825,1754983838696,-460.0,0.00018662,2]
[378711826,1754983838706,-1451.71,0.00018662,2]
[378711827,1754983838715,-904.36,0.00018662,2]
[378711828,1754983838724,-667.26,0.00018662,2]
[378711829,1754983838734,-571.73,0.00018662,2]
[378711830,1754983838743,-460.0,0.00018662,2]
[378711831,1754983838752,-384.09215312,0.00018662,2]
[378711832,1754983838764,-75.90784688,0.00018662,2]
[378711833,1754983838773,-460.0,0.00018662,2]
[378711834,1754983838783,-331.34053903,0.00018662,2]
[378711835,1754983838806,-128.65946097,0.00018662,2]
[378711836,1754983838815,-460.0,0.00018662,2]
[378711837,1754983838824,-460.0,0.00018662,2]
[378711838,1754983838836,-583.26677527,0.00018662,2]
[378711873,1754983840544,-773.46090654,0.00018662,2]
[378711875,1754983840556,-2086.81231819,0.00018662,2]
[378711877,1754983840566,-460.0,0.00018662,2]
[378711880,1754983840575,-1031.11,0.00018662,2]
[378711882,1754983840585,-638.56,0.00018662,2]
[378711884,1754983840594,-899.53,0.00018662,2]
[378711887,1754983840613,-532.70058282,0.00018662,2]
[378711890,1754983840627,-98.37941718,0.00018662,2]
[378711892,1754983840636,-179.17502925,0.00018662,2]
[378711960,1754983843684,-460.0,0.00018661,2]
[378711962,1754983843694,-367.95497075,0.00018662,2]
[378711964,1754983843703,-177.42596897,0.00018662,2]
[378712255,1754983865260,9769.075136,0.00017806,2]
[378712256,1754983902096,154.849507,0.000231,30]
[378712257,1754983909330,2309.28825267,0.00018562,2]
[378712258,1754983916904,1246.18216729,0.00018561,2]
[378712259,1754983916928,19274.16803408,0.00018561,2]
[378712260,1754983973063,200.0,0.00018,30]
[378712261,1754983993517,400.0,0.000185,2]
[378712262,1754983998873,205.51941318,0.00017735,2]
[378712263,1754984041339,120.31255274,0.00018376,2]
[378712264,1754984041363,47.68744726,0.00018376,2]
[378712265,1754984046653,19952.31255274,0.00017663,2]
[378712266,1754984046688,4947.68744726,0.00017663,2]
[378712267,1754984050518,505.0,0.00018243,2]
[378712268,1754984055263,505.0,0.00018351,2]
[378712269,1754984073587,505.0,0.00018425,2]
[378712270,1754984093347,424.41424522,0.00018561,2]
[378712271,1754984217450,3000.0,0.000231,30]
[378712272,1754984249337,250.0,0.00018418,2]
[378712273,1754984313148,2920.0,0.00018596,2]
[378712274,1754984321967,159.45108937,0.00017733,2]
[378712275,1754984323923,637.16655311,0.00017733,2]
[378712276,1754984327084,2000.0,0.00018596,2]
[378712277,1754984374549,371.36246455,0.00018561,2]
[378712279,1754984500147,171.98832313,0.00018098,2]
[378712280,1754984654654,324.94215649,0.00018559,2]
[378712281,1754984678970,184.57704285,0.00018432,2]
[378712282,1754984702116,872.204885,0.00017653,2]
[378712285,1754984717558,371.71164,0.00013699,2]
[378712286,1754984939933,284.32438692,0.00018558,2]
[378712287,1754984951249,7962.23988874,0.00017652,2]
[378712288,1754984951273,10000.0,0.00017652,2]
[378712289,1754984951297,6937.76011126,0.00017652,2]
[378712290,1754984962447,517.10106801,0.00017733,2]
[378712339,1754985032812,-310.0,0.00018613,2]
[378712341,1754985032822,-168.0,0.00018613,2]
[378712343,1754985032831,-505.0,0.00018614,2]
[378712345,1754985032840,-161.7277532,0.00018625,2]
[378712382,1754985038684,-6.2722468,0.00018625,2]
[378712383,1754985038694,-505.0,0.00018634,2]
[378712384,1754985038703,-300.0,0.00018656,2]
[378712385,1754985038713,-1200.0,0.00018656,2]
[378712386,1754985038722,-500.0,0.00018657,2]
[378712387,1754985038732,-500.0,0.00018657,2]
[378712388,1754985038751,-500.0,0.00018657,2]
[378712389,1754985038762,-492.11908604,0.00018657,2]
[378712390,1754985038775,-7.88091396,0.00018657,2]
[378712391,1754985038784,-500.0,0.00018657,2]
[378712392,1754985038795,-507.0659644,0.00018657,2]
[378712393,1754985038804,-500.0,0.00018657,2]
[378712394,1754985038815,-500.0,0.00018657,2]
[378712395,1754985038824,-500.0,0.00018657,2]
[378712396,1754985038834,-500.0,0.00018657,2]
[378712397,1754985038843,-573.74441714,0.00018657,2]
[378712398,1754985038853,-294.33060734,0.00018657,2]
[378712399,1754985038863,-460.0,0.00018657,2]
[378712400,1754985038872,-460.0,0.00018657,2]
[378712401,1754985038882,-470.72,0.00018657,2]
[378712402,1754985038892,-460.0,0.00018657,2]
[378712403,1754985038902,-188.98249752,0.00018657,2]
[378712404,1754985038914,-273.51540567,0.00018657,2]
[378712405,1754985038923,-1835.69,0.00018657,2]
[378712406,1754985038934,-3963.95,0.00018657,2]
[378712407,1754985038943,-460.0,0.00018657,2]
[378712408,1754985038953,-487.05,0.00018657,2]
[378712409,1754985038962,-1435.43597584,0.00018657,2]
[378712410,1754985038974,-947.04402416,0.00018657,2]
[378712411,1754985038983,-792.33,0.00018657,2]
[378712412,1754985038993,-460.0,0.00018657,2]
[378712413,1754985039003,-992.78611807,0.00018658,2]
[378712414,1754985039024,-7.32850102,0.00018658,2]
[378712415,1754985039033,-460.0,0.00018658,2]
[378712416,1754985039043,-541.29,0.00018658,2]
[378712417,1754985039052,-460.0,0.00018658,2]
[378712418,1754985039061,-460.0,0.00018658,2]
[378712419,1754985039070,-460.0,0.00018658,2]
[378712420,1754985039080,-460.0,0.00018658,2]
[378712421,1754985039089,-460.0,0.00018658,2]
[378712422,1754985039099,-2836.75,0.00018658,2]
[378712423,1754985039108,-547.9,0.00018658,2]
[378712424,1754985039118,-460.0,0.00018658,2]
[378712425,1754985039127,-3438.9,0.00018658,2]
[378712426,1754985039136,-549.89,0.00018658,2]
[378712427,1754985039146,-460.0,0.00018658,2]
[378712428,1754985039156,-862.05,0.00018658,2]
[378712429,1754985039169,-460.0,0.00018658,2]
[378712430,1754985039178,-16.10585554,0.00018658,2]
[378712431,1754985039191,-543.61414446,0.00018658,2]
[378712432,1754985039200,-475.27009664,0.00018658,2]
[378712433,1754985039210,-460.0,0.00018658,2]
[378712434,1754985039219,-460.0,0.00018658,2]
[378712435,1754985039229,-460.0,0.00018658,2]
[378712436,1754985039240,-460.0,0.00018658,2]
[378712437,1754985039249,-1777.51,0.00018658,2]
[378712438,1754985039259,-842.07,0.00018658,2]
[378712439,1754985039269,-462.76331509,0.00018658,2]
[378712440,1754985039278,-878.55,0.00018658,2]
[378712441,1754985039288,-365.57928728,0.00018658,2]
[378712442,1754985039297,-460.0,0.00018658,2]
[378712443,1754985039307,-460.0,0.00018658,2]
[378712444,1754985039316,-460.0,0.00018658,2]
[378712445,1754985039326,-461.86883288,0.00018658,2]
[378712446,1754985039336,-1131.71,0.00018658,2]
[378712447,1754985039345,-460.0,0.00018658,2]
[378712448,1754985039355,-461.64616442,0.00018658,2]
[378712449,1754985039364,-515.46,0.00018658,2]
[378712450,1754985039374,-460.0,0.00018658,2]
[378712451,1754985039388,-460.0,0.00018658,2]
[378712452,1754985039397,-455.28360857,0.00018658,2]
[378712453,1754985039410,-4.71639143,0.00018658,2]
[378712454,1754985039419,-1037.04,0.00018658,2]
[378712455,1754985039431,-461.2559888,0.00018658,2]
[378712456,1754985039443,-460.0,0.00018658,2]
[378712457,1754985039452,-42.4024846,0.00018658,2]
[378712458,1754985039464,-417.5975154,0.00018658,2]
[378712459,1754985039473,-460.0,0.00018658,2]
[378712460,1754985039483,-460.0,0.00018658,2]
[378712461,1754985039492,-461.53493079,0.00018658,2]
[378712462,1754985039502,-4.65099944,0.00018658,2]
[378712489,1754985040837,-391.90760006,0.00018658,2]
[378712527,1754985046645,-336.41000001,0.00018657,2]
[378712529,1754985190596,2545.13882073,0.00018559,2]
[378712530,1754985190622,10000.0,0.00018559,2]
[378712531,1754985190647,10000.0,0.00018559,2]
[378712532,1754985190673,10000.0,0.00018559,2]
[378712533,1754985190702,10000.0,0.00018559,2]
[378712534,1754985190727,10000.0,0.00018559,2]
[378712535,1754985190752,7709.3545945,0.00018559,2]
[378712536,1754985215199,248.78383852,0.00018557,2]
[378712570,1754985360537,2041.86156698,0.00017657,2]
[378712571,1754985360561,10000.0,0.00017657,2]
[378712572,1754985360589,10000.0,0.00017657,2]
[378712573,1754985360619,3197.48665172,0.00017657,2]
[378712574,1754985411593,198.0,0.000185,7]
[378712575,1754985416966,212.27339168,0.00018603,2]
[378712576,1754985430085,154.76686644,0.00018555,2]
[378712577,1754985430578,154.76686641,0.00018556,2]
[378712578,1754985431012,154.76686641,0.00018556,2]
[378712579,1754985431500,154.76686641,0.00018557,2]
[378712580,1754985432181,154.76686641,0.00018557,2]
[378712581,1754985458716,203.14872321,0.00018549,2]
[378712582,1754985472019,201.03731502,0.00018555,2]
[378712583,1754985472499,201.03731502,0.00018555,2]
[378712584,1754985473054,201.03731502,0.00018556,2]
[378712585,1754985473532,201.03731502,0.00018556,2]
[378712586,1754985474112,201.03731502,0.00018556,2]
[378712587,1754985476967,151.0,0.00019,7]
[378712588,1754985489625,4608.07032621,0.00018558,2]
[378712589,1754985489656,10000.0,0.00018558,2]
[378712590,1754985489682,10000.0,0.00018558,2]
[378712591,1754985489709,10000.0,0.00018558,2]
[378712592,1754985489734,10000.0,0.00018558,2]
[378712593,1754985489758,10000.0,0.00018558,2]
[378712594,1754985489783,10000.0,0.00018558,2]
[378712595,1754985489808,10000.0,0.00018558,2]
[378712596,1754985489833,10000.0,0.00018558,2]
[378712597,1754985489858,10000.0,0.00018558,2]
[378712598,1754985489883,10000.0,0.00018558,2]
[378712599,1754985489907,10000.0,0.00018558,2]
[378712600,1754985489932,10000.0,0.00018558,2]
[378712601,1754985489956,10000.0,0.00018558,2]
[378712602,1754985489980,10000.0,0.00018558,2]
[378712603,1754985490004,10000.0,0.00018558,2]
[378712604,1754985490031,10000.0,0.00018558,2]
[378712605,1754985490056,10000.0,0.00018558,2]
[378712606,1754985490081,10000.0,0.00018558,2]
[378712607,1754985490106,10000.0,0.00018558,2]
[378712608,1754985490129,10000.0,0.00018558,2]
[378712609,1754985490153,10000.0,0.00018558,2]
[378712610,1754985490177,10000.0,0.00018558,2]
[378712611,1754985490200,10000.0,0.00018558,2]
[378712612,1754985490223,10000.0,0.00018558,2]
[378712613,1754985490247,10000.0,0.00018558,2]
[378712614,1754985490270,10000.0,0.00018558,2]
[378712615,1754985490292,10000.0,0.00018558,2]
[378712616,1754985490316,10000.0,0.00018558,2]
[378712617,1754985490339,10000.0,0.00018558,2]
[378712618,1754985490363,10000.0,0.00018558,2]
[378712619,1754985490386,10000.0,0.00018558,2]
[378712620,1754985490409,10000.0,0.00018558,2]
[378712621,1754985490432,10000.0,0.00018558,2]
[378712622,1754985490455,10000.0,0.00018558,2]
[378712623,1754985490478,10000.0,0.00018558,2]
[378712624,1754985490502,10000.0,0.00018558,2]
[378712625,1754985490526,5391.92967379,0.00018558,2]
[378712626,1754985521995,1757.24247551,0.00018549,2]
[378712627,1754985535841,2850.8278507,0.00018556,2]
[378712628,1754985535865,4821.12250049,0.00018556,2]
[378712629,1754985574255,4644.20709606,0.00018558,2]
[378712630,1754985611594,534.67040345,0.00017656,2]
[378712631,1754985611618,650.21537955,0.00017656,2]
[378712632,1754985653417,9349.78462045,0.00018557,2]
[378712633,1754985653440,10000.0,0.00018557,2]
[378712634,1754985653463,10000.0,0.00018557,2]
[378712635,1754985653486,10000.0,0.00018557,2]
[378712636,1754985653508,10000.0,0.00018557,2]
[378712637,1754985653530,10000.0,0.00018557,2]
[378712638,1754985653554,10000.0,0.00018557,2]
[378712639,1754985653576,10000.0,0.00018557,2]
[378712640,1754985653598,10000.0,0.00018557,2]
[378712641,1754985653621,10000.0,0.00018557,2]
[378712642,1754985653643,10000.0,0.00018557,2]
[378712643,1754985653665,10000.0,0.00018557,2]
[378712644,1754985653687,10000.0,0.00018557,2]
[378712645,1754985653713,10000.0,0.00018557,2]
[378712646,1754985653736,10000.0,0.00018557,2]
[378712647,1754985653760,10000.0,0.00018557,2]
[378712648,1754985653784,10000.0,0.00018557,2]
[378712649,1754985653807,10000.0,0.00018557,2]
[378712650,1754985653830,10000.0,0.00018557,2]
[378712651,1754985653852,10000.0,0.00018557,2]
[378712652,1754985653875,10000.0,0.00018557,2]
[378712653,1754985653897,10000.0,0.00018557,2]
[378712654,1754985653919,10000.0,0.00018557,2]
[378712655,1754985653942,10000.0,0.00018557,2]
[378712656,1754985653965,10000.0,0.00018557,2]
[378712657,1754985653988,10000.0,0.00018557,2]
[378712658,1754985654011,10000.0,0.00018557,2]
[378712659,1754985654034,10000.0,0.00018557,2]
[378712660,1754985654058,10000.0,0.00018557,2]
[378712661,1754985654080,10000.0,0.00018557,2]
[378712662,1754985654105,10000.0,0.00018557,2]
[378712663,1754985654130,10000.0,0.00018557,2]
[378712664,1754985654153,10000.0,0.00018557,2]
[378712665,1754985654175,10000.0,0.00018557,2]
[378712666,1754985654198,10000.0,0.00018557,2]
[378712667,1754985654220,10000.0,0.00018557,2]
[378712668,1754985654245,10000.0,0.00018557,2]
[378712669,1754985654276,650.21537955,0.00018557,2]
[378712670,1754985661617,5000.0,0.00018603,2]
[378712671,1754985670234,4349.78462045,0.00018603,2]
[378712672,1754985670258,650.21537955,0.00018603,2]
[378712673,1754985676042,9349.78462045,0.00018559,2]
[378712674,1754985676065,650.21537955,0.00018559,2]
[378712675,1754985678891,5000.0,0.00018603,2]
[378712677,1754985687246,776.5,0.00018822,7]
[378712678,1754985687369,4349.78462045,0.00018603,2]
[378712679,1754985687393,650.21537955,0.00018603,2]
[378712680,1754985696615,5000.0,0.00018603,2]
[378712682,1754985699843,541.349308,0.00013699,2]
[378712683,1754985701484,1335.21211403,0.00018095,2]
[378712684,1754985705346,2473.22319842,0.00018603,2]
[378712685,1754985705371,2526.77680158,0.00018603,2]
[378712686,1754985713341,913.19422542,0.00018603,2]
[378712687,1754985716490,168.0,0.0001822,2]
[378712688,1754985721588,5000.0,0.00018603,2]
[378712689,1754985721742,168.0,0.00018331,2]
[378712690,1754985727850,168.0,0.00018448,2]
[378712691,1754985738078,1056.028973,0.00018603,2]
[378712692,1754985738102,3943.971027,0.00018603,2]
[378712693,1754985752762,168.0,0.00018277,2]
[378712694,1754985754056,5000.0,0.00018603,2]
[378712695,1754985756312,168.0,0.00018469,2]
[378712696,1754985765895,720.028973,0.00017795,2]
[378712697,1754985765919,1736.5090564,0.00017795,2]
[378712698,1754985769457,3769.16823771,0.00018603,2]
[378712699,1754985773582,210.35256253,0.00018534,2]
[378712700,1754985776558,180.21299072,0.00018543,2]
[378712701,1754985777746,180.2129907,0.00018546,2]
[378712702,1754985778196,180.2129907,0.00018549,2]
[378712703,1754985779259,180.2129907,0.00018552,2]
[378712704,1754985779783,180.2129907,0.00018555,2]
[378712705,1754985815171,3382.90518984,0.00018557,2]
[378712706,1754985815195,10000.0,0.00018557,2]
[378712707,1754985815218,10000.0,0.00018557,2]
[378712708,1754985815240,10000.0,0.00018557,2]
[378712709,1754985815263,10000.0,0.00018557,2]
[378712710,1754985815286,10000.0,0.00018557,2]
[378712711,1754985815309,10000.0,0.00018557,2]
[378712712,1754985815332,10000.0,0.00018557,2]
[378712713,1754985815355,10000.0,0.00018557,2]
[378712714,1754985815378,10000.0,0.00018557,2]
[378712715,1754985815402,10000.0,0.00018557,2]
[378712716,1754985815428,10000.0,0.00018557,2]
[378712717,1754985815451,10000.0,0.00018557,2]
[378712718,1754985815475,10000.0,0.00018557,2]
[378712719,1754985815498,10000.0,0.00018557,2]
[378712720,1754985815522,10000.0,0.00018557,2]
[378712721,1754985815544,10000.0,0.00018557,2]
[378712722,1754985815566,10000.0,0.00018557,2]
[378712723,1754985815589,10000.0,0.00018557,2]
[378712724,1754985815613,10000.0,0.00018557,2]
[378712725,1754985815636,10000.0,0.00018557,2]
[378712726,1754985815659,10000.0,0.00018557,2]
[378712727,1754985815682,10000.0,0.00018557,2]
[378712728,1754985815705,10000.0,0.00018557,2]
[378712729,1754985815728,10000.0,0.00018557,2]
[378712730,1754985815753,10000.0,0.00018557,2]
[378712731,1754985815775,10000.0,0.00018557,2]
[378712732,1754985815799,10000.0,0.00018557,2]
[378712733,1754985815824,10000.0,0.00018557,2]
[378712734,1754985815847,10000.0,0.00018557,2]
[378712735,1754985815869,10000.0,0.00018557,2]
[378712736,1754985815892,10000.0,0.00018557,2]
[378712737,1754985815914,10000.0,0.00018557,2]
[378712738,1754985815936,10000.0,0.00018557,2]
[378712739,1754985815959,10000.0,0.00018557,2]
[378712740,1754985815982,10000.0,0.00018557,2]
[378712741,1754985816004,10000.0,0.00018557,2]
[378712742,1754985816028,6617.09481016,0.00018557,2]
[378712743,1754985828981,3382.90518984,0.00018603,2]
[378712744,1754985829005,1617.09481016,0.00018603,2]
[378712745,1754985833538,181.1818645,0.00017795,2]
[378712746,1754985836981,3083.45915461,0.00018603,2]
[378712747,1754985839416,216.17931876,0.00018549,2]
[378712748,1754985845460,4902.08485197,0.00018603,2]
[378712749,1754985845484,97.91514803,0.00018603,2]
[378712750,1754985855534,1003.1235261,0.00017657,2]
[378712751,1754985861967,5000.0,0.00018603,2]
[378712752,1754985863110,3898.96132587,0.00017655,2]
[378712753,1754985863134,6101.03867413,0.00017655,2]
[378712754,1754985881853,166.62762435,0.00018543,2]
[378712755,1754985882322,166.62762435,0.00018546,2]
[378712756,1754985883368,166.62762435,0.00018549,2]
[378712757,1754985884008,166.62762435,0.00018551,2]
[378712758,1754985884529,166.62762435,0.00018554,2]
[378712759,1754985903166,3232.45082847,0.00018603,2]
[378712760,1754985903197,10000.0,0.00018603,2]
[378712761,1754985903229,10000.0,0.00018603,2]
[378712762,1754985903260,10000.0,0.00018603,2]
[378712763,1754985903294,10000.0,0.00018603,2]
[378712764,1754985903324,10000.0,0.00018603,2]
[378712765,1754985903353,10000.0,0.00018603,2]
[378712766,1754985903383,10000.0,0.00018603,2]
[378712767,1754985903410,10000.0,0.00018603,2]
[378712768,1754985903439,10000.0,0.00018603,2]
[378712769,1754985903466,10000.0,0.00018603,2]
[378712770,1754985903495,2032.54917153,0.00018603,2]
[378712771,1754985916431,3920.35747438,0.00018557,2]
[378712772,1754985921758,4047.09335409,0.00018603,2]
[378712773,1754985921786,952.90664591,0.00018603,2]
[378712774,1754985930420,4437.58813899,0.00018603,2]
[378712775,1754985940523,4609.5052151,0.00018603,2]
[378712776,1754985940548,390.4947849,0.00018603,2]
[378712777,1754985948353,218.0,0.00018253,2]
[378712778,1754985952542,218.0,0.00018443,2]
[378712779,1754985956562,5000.0,0.00018603,2]
[378712780,1754985961189,1011.0,0.00018017,2]
[378712781,1754985964771,1600.0,0.0001762,2]
[378712782,1754985966512,1011.0,0.00018346,2]
[378712783,1754985971698,551.5052151,0.00018338,2]
[378712784,1754985971722,459.4947849,0.00018338,2]
[378712785,1754985973133,5000.0,0.00018603,2]
[378712786,1754985979175,166.105434,0.00017652,2]
[378712787,1754985979210,4374.3997811,0.00018555,2]
[378712788,1754985979237,10000.0,0.00018555,2]
[378712789,1754985979262,10000.0,0.00018555,2]
[378712790,1754985979286,10000.0,0.00018555,2]
[378712791,1754985979312,10000.0,0.00018555,2]
[378712792,1754985979337,10000.0,0.00018555,2]
[378712793,1754985979363,10000.0,0.00018555,2]
[378712794,1754985979388,10000.0,0.00018555,2]
[378712795,1754985979414,10000.0,0.00018555,2]
[378712796,1754985979439,10000.0,0.00018555,2]
[378712797,1754985979465,10000.0,0.00018555,2]
[378712798,1754985979491,10000.0,0.00018555,2]
[378712799,1754985979516,10000.0,0.00018555,2]
[378712800,1754985979543,10000.0,0.00018555,2]
[378712801,1754985979568,10000.0,0.00018555,2]
[378712802,1754985979594,10000.0,0.00018555,2]
[378712803,1754985979619,10000.0,0.00018555,2]
[378712804,1754985979646,10000.0,0.00018555,2]
[378712805,1754985979672,10000.0,0.00018555,2]
[378712806,1754985979699,10000.0,0.00018555,2]
[378712807,1754985979725,10000.0,0.00018555,2]
[378712808,1754985979750,10000.0,0.00018555,2]
[378712809,1754985979777,10000.0,0.00018555,2]
[378712810,1754985979803,10000.0,0.00018555,2]
[378712811,1754985979829,10000.0,0.00018555,2]
[378712812,1754985979857,10000.0,0.00018555,2]
[378712813,1754985979883,10000.0,0.00018555,2]
[378712814,1754985979910,10000.0,0.00018555,2]
[378712815,1754985979936,10000.0,0.00018555,2]
[378712816,1754985979961,10000.0,0.00018555,2]
[378712817,1754985979986,10000.0,0.00018555,2]
[378712818,1754985980010,10000.0,0.00018555,2]
[378712819,1754985980034,10000.0,0.00018555,2]
[378712820,1754985980059,10000.0,0.00018555,2]
[378712821,1754985980084,10000.0,0.00018555,2]
[378712822,1754985980109,10000.0,0.00018555,2]
[378712823,1754985980133,10000.0,0.00018555,2]
[378712824,1754985980164,5625.6002189,0.00018555,2]
[378712825,1754985980246,166.105434,0.00017687,2]
[378712826,1754985980308,166.105434,0.00017722,2]
[378712827,1754985980366,166.105434,0.00017758,2]
[378712828,1754985980432,166.105434,0.00017793,2]
[378712829,1754985980473,166.105434,0.00017828,2]
[378712830,1754985988675,5000.0,0.00018602,2]
[378712831,1754985998620,195.35379498,0.00018543,2]
[378712832,1754986004095,5000.0,0.00018602,2]
[378712833,1754986020179,5000.0,0.00018602,2]
[378712834,1754986034296,198.06,0.00018425,2]
[378712835,1754986036263,5000.0,0.00018602,2]
[378712836,1754986042355,157.63588715,7.1e-07,2]
[378712837,1754986042576,157.63588715,7.1e-07,2]
[378712838,1754986042679,157.63588715,7.1e-07,2]
[378712839,1754986042777,157.63588715,7.1e-07,2]
[378712840,1754986042918,157.63588715,7.1e-07,2]
[378712841,1754986043048,157.63588715,7.1e-07,2]
[378712842,1754986043142,157.63588715,7.1e-07,2]
[378712843,1754986043356,157.63588715,7.1e-07,2]
[378712844,1754986043458,157.63588715,7.1e-07,2]
[378712845,1754986045203,1000.4757246,0.00017651,2]
[378712849,1754986106931,24900.0,0.00017655,2]
[378712850,1754986142124,370000.0,0.00018555,2]
[378712851,1754986151807,957583.75878998,0.00018534,2]
[378712852,1754986151838,32416.25363994,0.00018534,2]
[378712854,1754986195030,1004.23343853,0.00018557,2]
[378712855,1754986196338,317.97002242,0.00018552,2]
[378712856,1754986196367,6886.20803715,0.00018552,2]
[378712866,1754986231977,-2151.0,0.00018634,2]
[378712868,1754986231987,-168.0,0.00018643,2]
[378712870,1754986231996,-175.12,0.00018645,3]
[378712872,1754986232006,-151.0,0.00018647,2]
[378712874,1754986232016,-300.0,0.00018651,2]
[378712875,1754986232029,-300.0,0.00018651,2]
[378712876,1754986232038,-493.60298282,0.00018651,2]
[378712877,1754986232070,-706.39701718,0.00018651,2]
[378712879,1754986232081,-500.0,0.00018652,2]
[378712881,1754986232091,-500.0,0.00018652,2]
[378712883,1754986232100,-500.0,0.00018652,2]
[378712885,1754986232110,-500.0,0.00018652,2]
[378712887,1754986232120,-500.0,0.00018652,2]
[378712889,1754986232129,-27.35546282,0.00018652,2]
[378712891,1754986232141,-472.64453718,0.00018652,2]
[378712893,1754986232150,-500.0,0.00018652,2]
[378712895,1754986232160,-230.16732097,0.00018652,2]
[378712897,1754986232169,-500.0,0.00018652,2]
[378712899,1754986232178,-571.79295581,0.00018652,2]
[378712901,1754986232188,-500.0,0.00018652,2]
[378712903,1754986232197,-500.0,0.00018652,2]
[378712905,1754986232206,-500.0,0.00018652,2]
[378712907,1754986232216,-500.0,0.00018652,2]
[378712909,1754986232225,-500.0,0.00018652,2]
[378712911,1754986232234,-500.0,0.00018652,2]
[378712913,1754986232243,-500.0,0.00018652,2]
[378712915,1754986232253,-249.10403219,0.00018652,2]
[378712916,1754986232263,-500.0,0.00018652,2]
[378712917,1754986232273,-500.0,0.00018652,2]
[378712918,1754986232282,-500.0,0.00018652,2]
[378712919,1754986232291,-393.29714887,0.00018652,2]
[378712920,1754986232301,-500.0,0.00018652,2]
[378712922,1754986232310,-500.0,0.00018652,2]
[378712924,1754986232320,-500.0,0.00018652,2]
[378712925,1754986232330,-500.0,0.00018652,2]
[378712927,1754986232339,-500.0,0.00018652,2]
[378712929,1754986232348,-560.28054726,0.00018652,2]
[378712931,1754986232358,-500.0,0.00018652,2]
[378712933,1754986232367,-500.0,0.00018652,2]
[378712934,1754986232377,-500.0,0.00018652,2]
[378712936,1754986232386,-500.0,0.00018652,2]
[378712937,1754986232395,-300.0,0.00018652,2]
[378712939,1754986232406,-500.0,0.00018652,2]
[378712941,1754986232415,-500.0,0.00018652,2]